fUST/lending_fUST_20251227
["ID","MTS","AMOUNT","RATE_DAILY","PERIOD"]
[399873603,1766790647140,-25484.56074859,0.000214,2]
[399873604,1766790647158,-1111.47945089,0.000214,2]
[399873605,1766790647188,150.0,0.00013882,2]
[399873606,1766790647277,150.0,0.00015144,2]
[399873607,1766790651035,5000.0,0.0001439,2]
[399873608,1766790674470,229.86302988,0.00016242,2]
[399873609,1766790712312,150.0,0.00013388,2]
[399873610,1766790777085,150.0,0.00013855,2]
[399873613,1766790822510,306151.0,0.0003013,120]
[399873614,1766790842548,150.0,0.00013079,2]
[399873615,1766790842809,150.0,0.00014268,2]
[399873618,1766791056621,573.716097,0.00013699,2]
[399873621,1766791323930,590.76742831,0.00013273,2]
[399873625,1766791567680,2433.41621918,0.00014199,2]
[399873626,1766791568084,2433.41621918,0.0001427,2]
[399873631,1766791637247,-845.0606246,0.00014534,2]
[399873637,1766791679051,5000.0,0.0001439,2]
[399873640,1766791750107,-457.50512266,0.0001506,2]
[399873641,1766791750130,-177.70488837,0.00015212,2]
[399873642,1766791751122,-122.29511163,0.00015212,2]
[399873643,1766791751144,-164.239489,0.0001546,2]
[399873644,1766791751168,-213.69874488,0.00015484,2]
[399873645,1766791751191,-181.16356967,0.0001714,2]
[399873646,1766791751214,-265.87818803,0.00017223,2]
[399873647,1766791751237,-2691.97595291,0.0001738,2]
[399873648,1766791751260,-2399.6137942,0.00017446,2]
[399873649,1766791751283,-252.16451896,0.00017484,2]
[399873650,1766791751307,-1057.0,0.0001775,2]
[399873651,1766791751331,-300.0,0.0001775,2]
[399873652,1766791751353,-2224.53507696,0.00017751,2]
[399873653,1766791766126,-175.07871724,0.00017751,2]
[399873654,1766791766147,-612.91551758,0.0001786,2]
[399873683,1766791831634,-2372.96529344,0.00018027,2]
[399873685,1766791831644,-204.38147961,0.0001803,2]
[399873687,1766791831655,-2372.96529344,0.0001815,2]
[399873689,1766791831665,-500.0,0.000182,2]
[399873691,1766791831676,-171.42999674,0.000182,2]
[399873693,1766791831686,-1000.0,0.00018201,2]
[399873695,1766791831696,-1041.66666667,0.00018293,2]
[399873696,1766791831706,-2372.96529344,0.00018427,2]
[399873698,1766791831715,-1200.0,0.00018552,2]
[399873699,1766791831725,-1589.515901,0.00018553,2]
[399873700,1766791831735,-298.0,0.00018572,2]
[399873701,1766791831745,-300.0,0.00018573,2]
[399873702,1766791831756,-2372.96529344,0.00018737,2]
[399873703,1766791831766,-3536.3915299,0.00019067,2]
[399873704,1766791831776,-2372.96529344,0.00019128,2]
[399873705,1766791831786,-2372.96529344,0.00019286,2]
[399873706,1766791831795,-256.2712552,0.00019524,2]
[399873707,1766791831805,-2372.96529344,0.00019581,2]
[399873708,1766791831816,-2372.96529344,0.00019986,2]
[399873709,1766791831826,-241.17014594,0.0002003,2]
[399873711,1766791831836,-1692.62052319,0.00020084,2]
[399873712,1766791831849,-680.34477025,0.00020084,2]
[399873713,1766791831858,-573.716097,0.00020187,2]
[399873714,1766791831868,-2372.96529344,0.00020374,2]
[399873715,1766791831878,-151.7226327,0.00020399,2]
[399873716,1766791831889,-2372.96529344,0.00020738,2]
[399873717,1766791831900,-1648.28395654,0.00021045,2]
[399873718,1766791831912,-551.15446361,0.00021045,2]
[399873723,1766791837801,-173.52687329,0.00021045,2]
[399873724,1766791837811,-117.77328171,0.00021146,2]
[399873725,1766791837823,-81.88289141,0.00021146,2]
[399873726,1766791837833,-500.0,0.00021146,2]
[399873727,1766791837843,-247.15441256,0.00021146,2]
[399873728,1766791837855,-252.84558744,0.00021146,2]
[399873729,1766791837864,-500.0,0.00021146,2]
[399873730,1766791837874,-79.28361575,0.00021146,2]
[399873731,1766791837888,-265.48878651,0.00021146,2]
[399873732,1766791837898,-500.0,0.00021146,2]
[399873733,1766791837907,-500.0,0.00021146,2]
[399873734,1766791837917,-500.0,0.00021146,2]
[399873735,1766791837927,-500.0,0.00021146,2]
[399873736,1766791837936,-428.75942149,0.00021147,2]
[399873737,1766791837949,-1944.20587195,0.00021147,2]
[399873738,1766791837958,-613.41199494,0.00021168,2]
[399873739,1766791837969,-156.81575768,0.00021389,2]
[399873740,1766791837978,-2264.63191184,0.0002139,10]
[399873741,1766791838255,-1577.33909433,0.0002139,10]
[399873742,1766791838267,-1040.1369001,0.0002139,10]
[399873743,1766791838279,-1619.38572393,0.0002139,10]
[399873744,1766791838291,-2905.13,0.0002139,10]
[399873752,1766791839904,-303.51238986,0.0002139,10]
[399874082,1766791845504,-600.0,0.0002139,10]
[399874092,1766792741144,-405.0,0.000151,2]
[399874093,1766792828085,-265.83887882,0.000151,2]
[399874095,1766792952102,-4329.16112118,0.00014949,2]
[399874096,1766792952127,-195.4704471,0.00015176,2]
[399874097,1766792952148,-500.0,0.00015253,2]
[399874098,1766792952180,-230.65512757,0.00017176,2]
[399874112,1766793031832,-352.0,0.00018776,2]
[399874113,1766793031845,-2020.96529344,0.00018776,2]
[399874114,1766793031855,-2372.96529344,0.00019024,2]
[399874115,1766793031865,-265.83980805,0.00019176,2]
[399874116,1766793031876,-637.0,0.00019294,2]
[399874128,1766793032105,-2372.96529344,0.00019295,2]
[399874129,1766793032179,-156.0,0.00019506,2]
[399874130,1766793032189,-300.0,0.00019506,2]
[399874131,1766793032199,-154.0,0.00019506,2]
[399874132,1766793032209,-2372.96529344,0.00019507,2]
[399874133,1766793032220,-925.32505094,0.000197,2]
[399874134,1766793032229,-2372.96529344,0.00019851,2]
[399874135,1766793032239,-1517.1826968,0.00019984,2]
[399874136,1766793032248,-159.4874316,0.00019984,2]
[399874138,1766793032258,-336.3560225,0.00019984,2]
[399874140,1766793032268,-2372.96529344,0.00020096,2]
[399874142,1766793032278,-2372.96529344,0.00020541,2]
[399874143,1766793032287,-2372.96529344,0.00020609,2]
[399874145,1766793032297,-2372.96529344,0.00020827,2]
[399874146,1766793032306,-301.02448853,0.00021176,2]
[399874147,1766793032319,-407.15851422,0.00021211,2]
[399874148,1766793032330,-413.0583921,0.0002123,2]
[399874149,1766793032339,-2372.9652935,0.00021256,2]
[399874150,1766793032350,-190.2593012,0.00022084,2]
[399874151,1766793032360,-1363.0,0.00022092,2]
[399874152,1766793032370,-633.0,0.00022092,2]
[399874153,1766793032380,-2161.0,0.00022092,2]
[399874154,1766793032390,-416.0,0.00022092,2]
[399874155,1766793032401,-247.3190145,0.00022193,2]
[399874156,1766793032411,-598.7514956,0.00022193,2]
[399874157,1766793032421,-164.239489,0.0002231,2]
[399874158,1766793032432,-336.3560225,0.00022445,2]
[399874159,1766793032442,-500.0,0.00022587,2]
[399874160,1766793032452,-150.0,0.00022587,2]
[399874161,1766793032462,-150.0,0.00022587,2]
[399874162,1766793032471,-150.0,0.00022587,2]
[399874163,1766793032482,-150.0,0.00022587,2]
[399874164,1766793032491,-411.0,0.000227,3]
[399874165,1766793032501,-30.35462166,0.00022724,2]
[399874166,1766793032514,-469.64537834,0.00022724,2]
[399874167,1766793032524,-150.0,0.00022724,2]
[399874168,1766793032534,-197.92151121,0.00022861,2]
[399874182,1766793037959,-302.07848879,0.00022861,2]
[399874183,1766793037969,-166.59029801,0.00022861,2]
[399874184,1766793037979,-500.0,0.00022998,2]
[399874185,1766793037989,-758.48090604,0.0002303,2]
[399874186,1766793037999,-465.32401625,0.00023065,2]
[399874187,1766793038008,-500.0,0.00023083,2]
[399874188,1766793038018,-413.07544405,0.00023083,2]
[399874189,1766793038028,-500.0,0.00023083,2]
[399874190,1766793038037,-500.0,0.00023083,2]
[399874191,1766793038047,-500.0,0.00023083,2]
[399874192,1766793038056,-500.0,0.00023083,2]
[399874194,1766793038066,-472.06673383,0.00023084,2]
[399874195,1766793038075,-500.0,0.00023135,2]
[399874196,1766793038085,-336.209169,0.00023176,2]
[399874197,1766793038094,-600.0,0.00023199,2]
[399874198,1766793038104,-600.0,0.00023221,2]
[399874199,1766793038114,-500.0,0.00023272,2]
[399874200,1766793038124,-584.0,0.00023409,2]
[399874201,1766793038138,-600.0,0.00023481,2]
[399874202,1766793038148,-38655.77033629,0.000235,2]
[399874203,1766793038160,-12942.11470087,0.000235,2]
[399874204,1766793038175,-775.8445213,0.000235,2]
[399874205,1766793038187,-2892.56291802,0.000235,2]
[399874243,1766793040307,-3624.30585884,0.000235,2]
[399874245,1766793040318,-568.63107229,0.000235,2]
[399874563,1766793043526,200.75844017,7.961e-05,2]
[399874590,1766793044159,200.75844017,0.00016188,2]
[399874596,1766793046053,-55558.77059603,0.000235,2]
[399874597,1766793046086,-111.93283687,0.000235,2]
[399874598,1766793046158,-13727.73322972,0.000235,2]
[399874599,1766793070489,170.31576697,7.961e-05,2]
[399874617,1766793631294,200.0,0.00027841,120]
[399874618,1766793751227,200.0,0.0002668,120]
[399874621,1766793810792,200.0,0.00029082,120]
[399874622,1766793958135,-1988.86791696,0.00018453,2]
[399874623,1766793963830,516.344487,0.00013699,2]
[399874624,1766794050081,-3011.13208304,0.00018453,2]
[399874625,1766794050104,-175.42646629,0.00018593,2]
[399874626,1766794050127,-564.0,0.00018826,2]
[399874627,1766794050148,-254.51144198,0.00018827,2]
[399874628,1766794051023,200.0,0.00024049,120]
[399874629,1766794164347,-359.03028238,0.00018639,2]
[399874630,1766794215029,150.0,0.00011293,2]
[399874647,1766794232005,-785.29022319,0.00018639,2]
[399874649,1766794232016,-1423.65178104,0.00018639,2]
[399874652,1766794232040,-2432.02771339,0.00018639,2]
[399874654,1766794232050,-825.04179108,0.00018827,2]
[399874656,1766794232061,-516.344487,0.00020187,2]
[399874658,1766794232070,-207.00323022,0.00020593,2]
[399874660,1766794232079,-235.9016933,0.0002104,7]
[399874662,1766794232088,-232.53221526,0.00021107,7]
[399874664,1766794232099,-1200.0,0.00022301,2]
[399874665,1766794232108,-150.0,0.00022303,2]
[399874667,1766794232117,-2159.0,0.00022303,2]
[399874669,1766794232127,-632.0,0.00022303,2]
[399874671,1766794232137,-1363.0,0.00022303,2]
[399874673,1766794232147,-416.0,0.00022303,2]
[399874675,1766794232156,-406.33772056,0.00022303,2]
[399874676,1766794232166,-920.736738,0.00022369,2]
[399874678,1766794232175,-238.57999416,0.00022593,2]
[399874679,1766794232184,-255.48031066,0.00022854,2]
[399874680,1766794232194,-459.86455919,0.00022854,2]
[399874681,1766794232204,-505.65393736,0.0002303,2]
[399874682,1766794232214,-817.53699411,0.00023089,2]
[399874683,1766794232224,-500.0,0.0002323,2]
[399874684,1766794232234,-500.0,0.00023238,2]
[399874685,1766794232244,-168.1780113,0.00023361,2]
[399874686,1766794232254,-4589.08,0.0002339,10]
[399874687,1766794232264,-7929.86,0.0002339,10]
[399874688,1766794232275,-6608.21,0.0002339,10]
[399874689,1766794232284,-5506.85,0.0002339,10]
[399874690,1766794232295,-82964.47845331,0.000234,2]
[399874691,1766794232308,-563.92185353,0.000234,2]
[399874692,1766794232320,-7942.55050759,0.000234,2]
[399874693,1766794236809,249.55285,0.00027,120]
[399874694,1766794237103,249.55285,0.000282,120]
[399874695,1766794237403,249.55285,0.000294,120]
[399874705,1766794238230,-4589.04,0.0002339,10]
[399874707,1766794238241,-2961.8998792,0.000234,2]
[399874708,1766794238251,-25285.49026179,0.000235,2]
[399874709,1766794238263,-40161.96984318,0.000235,2]
[399874710,1766794238275,-338.84055212,0.000235,2]
[399874711,1766794238287,-333.71912776,0.000235,2]
[399874712,1766794238304,-4819.5,0.000235,2]
[399874713,1766794238316,-16844.9999999,0.000235,2]
[399874714,1766794238328,-2477.74752223,0.000235,2]
[399874715,1766794238340,-822.42279838,0.000235,2]
[399874716,1766794238352,-1107.56081372,0.000235,2]
[399874717,1766794238364,-1049.11911392,0.000235,2]
[399874718,1766794238376,-890.15205145,0.000235,2]
[399874719,1766794238388,-281.00478041,0.000235,2]
[399874726,1766794240394,-1499.98806,0.000235,2]
[399874727,1766794240406,-1023.59729684,0.000235,2]
[399874729,1766794240432,-303.59,0.000235,2]
[399875114,1766794245568,-886.53,0.00023265,2]
[399875115,1766794245673,-220.98532411,0.00023265,2]
[399875116,1766794245685,-2099.0,0.00023265,2]
[399875126,1766794246229,-1793.48467589,0.00023265,2]
[399875127,1766794246240,-3206.51532411,0.000235,2]
[399875128,1766794246252,-35654.80395575,0.000235,2]
[399875129,1766794246277,-851.78723781,0.000235,2]
[399875130,1766794246432,-1434.71368843,0.000235,2]
[399875131,1766794246443,-305.00000001,0.000235,2]
[399875132,1766794247000,-33401.85134745,0.000235,2]
[399875133,1766794247012,-436.95228894,0.000235,2]
[399875134,1766794283208,500.0,0.000225,120]
[399875135,1766794283965,500.0,0.000225,120]
[399875136,1766794284735,500.0,0.000225,120]
[399875137,1766794285515,500.0,0.000225,120]
[399875138,1766794286291,500.0,0.000225,120]
[399875139,1766794287032,500.0,0.000225,120]
[399875140,1766794287781,500.0,0.000225,120]
[399875141,1766794288582,500.0,0.000225,120]
[399875142,1766794289335,500.0,0.000225,120]
[399875143,1766794290085,500.0,0.000225,120]
[399875144,1766794290838,500.0,0.000225,120]
[399875145,1766794291602,500.0,0.000225,120]
[399875146,1766794292049,248.71700218,7.961e-05,2]
[399875147,1766794292699,248.71700218,0.00012813,2]
[399875148,1766794293355,500.0,0.000225,120]
[399875149,1766794294101,500.0,0.000225,120]
[399875150,1766794294848,500.0,0.000225,120]
[399875151,1766794295628,500.0,0.000225,120]
[399875152,1766794296617,500.0,0.000225,120]
[399875153,1766794297112,500.0,0.000225,120]
[399875154,1766794297861,500.0,0.000225,120]
[399875155,1766794298609,500.0,0.000225,120]
[399875156,1766794299751,500.0,0.000225,120]
[399875157,1766794300497,500.0,0.000225,120]
[399875158,1766794301249,500.0,0.000225,120]
[399875159,1766794302015,500.0,0.000225,120]
[399875160,1766794302795,500.0,0.000225,120]
[399875161,1766794303557,500.0,0.000225,120]
[399875162,1766794304311,500.0,0.000225,120]
[399875163,1766794305052,500.0,0.000225,120]
[399875164,1766794305796,500.0,0.000225,120]
[399875165,1766794306591,500.0,0.000225,120]
[399875166,1766794307308,500.0,0.000225,120]
[399875167,1766794308065,500.0,0.000225,120]
[399875168,1766794308811,500.0,0.000225,120]
[399875169,1766794309552,500.0,0.000225,120]
[399875170,1766794310302,500.0,0.000225,120]
[399875171,1766794311053,500.0,0.000225,120]
[399875172,1766794311197,358.7557407,0.0003,120]
[399875173,1766794311813,500.0,0.000225,120]
[399875174,1766794312569,500.0,0.000225,120]
[399875175,1766794313315,500.0,0.000225,120]
[399875176,1766794314064,500.0,0.000225,120]
[399875177,1766794314821,500.0,0.000225,120]
[399875178,1766794315611,500.0,0.000225,120]
[399875179,1766794316487,500.0,0.000225,120]
[399875180,1766794317105,500.0,0.000225,120]
[399875181,1766794317852,500.0,0.000225,120]
[399875182,1766794318595,500.0,0.000225,120]
[399875183,1766794319344,500.0,0.000225,120]
[399875184,1766794320124,500.0,0.000225,120]
[399875185,1766794321273,500.0,0.000225,120]
[399875186,1766794322026,500.0,0.000225,120]
[399875187,1766794322805,500.0,0.000225,120]
[399875188,1766794323573,500.0,0.000225,120]
[399875189,1766794324316,500.0,0.000225,120]
[399875190,1766794325066,500.0,0.000225,120]
[399875191,1766794325826,500.0,0.000225,120]
[399875192,1766794326693,500.0,0.000225,120]
[399875193,1766794327320,500.0,0.000225,120]
[399875194,1766794328201,500.0,0.000225,120]
[399875195,1766794328973,500.0,0.000225,120]
[399875196,1766794329720,500.0,0.000225,120]
[399875197,1766794330507,500.0,0.000225,120]
[399875198,1766794331505,500.0,0.000225,120]
[399875199,1766794332009,500.0,0.000225,120]
[399875200,1766794332756,500.0,0.000225,120]
[399875201,1766794333503,500.0,0.000225,120]
[399875202,1766794334254,500.0,0.000225,120]
[399875203,1766794334994,500.0,0.000225,120]
[399875204,1766794335799,500.0,0.000225,120]
[399875206,1766794336636,500.0,0.000225,120]
[399875207,1766794337418,500.0,0.000225,120]
[399875208,1766794338175,500.0,0.000225,120]
[399875209,1766794338919,500.0,0.000225,120]
[399875210,1766794339686,500.0,0.000225,120]
[399875211,1766794340439,327.17,0.000225,120]
[399875212,1766794343335,150.0,0.0001403,2]
[399875215,1766794383120,223.54948883,7.961e-05,2]
[399875216,1766794383797,223.54948883,0.00012727,2]
[399875217,1766794408920,150.0,0.00012581,2]
[399875218,1766794410766,200.0,0.00023249,120]
[399875219,1766794493119,17484.1893511,0.00030136,120]
[399875221,1766795132137,-252.70560198,0.00015996,2]
[399875223,1766795250096,-766.21094763,0.00015996,2]
[399875226,1766795350112,-2792.91204004,0.00015836,2]
[399875227,1766795350136,-189.28956286,0.00016038,2]
[399875228,1766795350159,-468.78372195,0.00016321,2]
[399875229,1766795362091,-457.50512266,0.00016158,2]
[399875230,1766795362113,-188.21627805,0.00016321,2]
[399875263,1766795432282,-181.16356967,0.00017038,2]
[399875264,1766795432293,-327.31037668,0.00017038,2]
[399875291,1766795438828,-341.68962332,0.00017038,2]
[399875292,1766795438839,-223.54948883,0.00017493,2]
[399875293,1766795438849,-223.36168417,0.00018038,2]
[399875294,1766795438859,-1041.66666667,0.00018451,2]
[399875295,1766795438876,-5012.0409337,0.0002,7]
[399875296,1766795438886,-257.43380548,0.00020038,2]
[399875297,1766795438898,-300.0,0.00020398,2]
[399875298,1766795438912,-177.0,0.00020398,2]
[399875299,1766795438923,-300.0,0.00020399,2]
[399875300,1766795438933,-300.0,0.00020399,2]
[399875301,1766795438945,-300.0,0.00020399,2]
[399875302,1766795438956,-300.0,0.00020399,2]
[399875303,1766795438966,-300.0,0.00020399,2]
[399875304,1766795438978,-300.0,0.00020399,2]
[399875305,1766795438988,-250.23779783,0.00020399,2]
[399875324,1766795440687,-266.73028082,0.00016919,2]
[399875326,1766795440697,-49.76220217,0.00020399,2]
[399875329,1766795440707,-300.0,0.00020399,2]
[399875331,1766795440717,-300.0,0.00020399,2]
[399875332,1766795440727,-82.81513391,0.00020399,2]
[399875655,1766795446632,-217.18486609,0.00020399,2]
[399875657,1766795446643,-300.0,0.00020399,2]
[399875658,1766795446653,-300.0,0.00020399,2]
[399875659,1766795446663,-300.0,0.00020399,2]
[399875660,1766795446672,-245.97911733,0.00020399,2]
[399875662,1766795476601,235.08162237,7.961e-05,2]
[399875663,1766795581231,227.39986346,7.961e-05,2]
[399875665,1766796341126,-291.46054034,0.00016544,2]
[399875666,1766796341148,-179.96786181,0.00016712,2]
[399875667,1766796341169,-667.0,0.0001688,2]
[399875668,1766796341190,-195.30805499,0.00017223,2]
[399875669,1766796430076,-265.83887882,0.00017051,2]
[399875670,1766796430097,-32.09180847,0.00017223,2]
[399875671,1766796430119,-212.36207693,0.00018712,2]
[399875672,1766796430140,-404.79881375,0.00019098,2]
[399875673,1766796430161,-2312.07443558,0.00019802,2]
[399875674,1766796430181,-2000.0,0.0002,2]
[399875675,1766796430202,-1018.0,0.00020003,2]
[399875676,1766796430223,-2312.07443558,0.00020249,2]
[399875677,1766796430246,-244.75629206,0.00020712,2]
[399875678,1766796430270,-12.36277992,0.00020898,2]
[399875679,1766796430299,-287.63722008,0.00020898,2]
[399875680,1766796430320,-416.51146172,0.00020899,2]
[399875681,1766796547719,464.710038,0.00013699,2]
[399875711,1766796632387,-464.710038,0.00020187,2]
[399875713,1766796632397,-171.83923974,0.00020543,2]
[399875715,1766796632407,-293.13936203,0.00020897,2]
[399875717,1766796632416,-500.0,0.00020897,2]
[399875719,1766796632427,-500.0,0.00020897,2]
[399875721,1766796632437,-500.0,0.00020897,2]
[399875723,1766796632446,-500.0,0.00020897,2]
[399875725,1766796632455,-500.0,0.00020897,2]
[399875727,1766796632466,-115.15411876,0.00020897,2]
[399875731,1766796632497,-384.84588124,0.00020897,2]
[399875733,1766796632506,-442.35117638,0.00020897,2]
[399875820,1766796638444,-139.17328197,0.00020897,2]
[399875821,1766796638455,-500.0,0.00020897,2]
[399875823,1766796638466,-27126.62707949,0.00020898,2]
[399875824,1766796638498,-296.26393716,0.00020898,2]
[399875825,1766796638510,-1646.08159874,0.00020898,2]
[399875826,1766796638552,-445.58233468,0.00020898,2]
[399875835,1766796640652,-804.7719191,0.00020898,2]
[399876198,1766796644892,-5396.0609,0.00020898,2]
[399876199,1766796644903,-629.45209132,0.00020898,2]
[399876200,1766796644915,-12866.45535746,0.00020898,2]
[399876202,1766796644924,-1057.0,0.00020898,2]
[399876204,1766796644935,-1186.34542571,0.00020899,2]
[399876215,1766796646688,-493.33333333,0.00020899,2]
[399876216,1766796655530,275.14492257,7.961e-05,2]
[399876231,1766796781466,259.32681474,7.961e-05,2]
[399876233,1766797071989,174.00703613,0.00027514,120]
[399876250,1766797517960,5900.0,0.00030136,120]
[399876251,1766797532120,-3011.13208304,0.00016897,2]
[399876252,1766797532142,-259.32681474,0.00017068,2]
[399876253,1766797532162,-121.09506248,0.00017839,2]
[399876254,1766797637076,-359.03028238,0.00018235,2]
[399876255,1766797637099,-169.48908302,0.00018419,2]
[399876256,1766797637120,-791.23234354,0.00019,2]
[399876257,1766797637140,-445.69436935,0.00019285,2]
[399876258,1766797637160,-816.798538,0.00020416,2]
[399876259,1766797637181,-199.99711797,0.00020419,2]
[399876260,1766797637201,-331.0,0.000207,2]
[399876261,1766797637222,-2006.41,0.00021,2]
[399876262,1766797637243,-88.58620742,0.00021452,2]
[399876263,1766797749086,-260.10479519,0.00017324,2]
[399876269,1766797793712,4000.0,0.00030137,120]
[399876290,1766797832559,-295.48853903,0.00021209,2]
[399876291,1766797832569,-521.86235052,0.00021209,2]
[399876292,1766797835204,168.1780113,0.00020521,2]
[399876293,1766797837674,-10.01701974,0.00021209,2]
[399876294,1766797837685,-738.85008806,0.00021209,2]
[399876295,1766797837698,-205.76767352,0.00021209,2]
[399876296,1766797837708,-524.57492243,0.00021209,2]
[399876297,1766797837718,-944.23486038,0.00021209,2]
[399876298,1766797837727,-1672.62062851,0.00021209,2]
[399876698,1766797844157,-4.34048352,0.00021209,2]
[399876701,1766797844168,-287.34723548,0.00021452,2]
[399876702,1766797844183,-154.30280779,0.00021531,2]
[399876768,1766797844815,-9.93668121,0.00021531,2]
[399876770,1766797844826,-564.0,0.00021999,2]
[399876772,1766797844836,-1865.75060481,0.00022,2]
[399876791,1766797845726,-134.24939519,0.00022,2]
[399876792,1766797845737,-276.92060481,0.00022211,2]
[399876794,1766797851090,252.39955171,7.961e-05,2]
[399876795,1766797851756,252.39955171,0.00012682,2]
[399876797,1766797852421,252.39955171,0.00017403,2]
[399876802,1766798055759,159.0,0.000301,120]
[399876803,1766798314804,200.75277881,0.00030136,120]
[399876804,1766798334222,307.72268001,0.00030136,120]
[399876805,1766798339168,319.34924997,0.00030136,120]
[399876806,1766798350102,594.9,0.00030136,120]
[399876807,1766798350564,594.9,0.00030136,120]
[399876808,1766798350638,594.9,0.00030136,120]
[399876809,1766798350868,594.9,0.00030136,120]
[399876810,1766798351102,594.9,0.00030136,120]
[399876811,1766798351334,594.9,0.00030136,120]
[399876812,1766798351564,594.9,0.00030136,120]
[399876813,1766798351800,594.9,0.00030136,120]
[399876814,1766798352043,594.9,0.00030136,120]
[399876815,1766798352299,594.9,0.00030136,120]
[399876816,1766798352544,594.9,0.00030136,120]
[399876817,1766798352770,594.9,0.00030136,120]
[399876818,1766798352994,594.9,0.00030136,120]
[399876819,1766798353326,594.9,0.00030136,120]
[399876820,1766798353562,594.9,0.00030136,120]
[399876821,1766798353827,594.9,0.00030136,120]
[399876822,1766798354057,594.9,0.00030136,120]
[399876823,1766798354327,594.9,0.00030136,120]
[399876824,1766798354753,594.9,0.00030136,120]
[399876825,1766798355008,594.9,0.00030136,120]
[399876826,1766798355238,594.9,0.00030136,120]
[399876827,1766798355477,594.9,0.00030136,120]
[399876828,1766798355706,594.9,0.00030136,120]
[399876829,1766798356035,594.97275398,0.00030136,120]
[399876830,1766798376174,263.7706626,0.00029999,120]
[399876831,1766798379060,214.81367632,0.00029999,120]
[399876832,1766798392087,500.0,0.00029999,120]
[399876833,1766798392183,229.76984592,0.00029999,120]
[399876834,1766798395186,2598.64,0.00029999,120]
[399876835,1766798395418,2598.64,0.00029999,120]
[399876836,1766798395653,2598.64,0.00029999,120]
[399876837,1766798396043,2598.64,0.00029999,120]
[399876838,1766798396278,2598.64,0.00029999,120]
[399876839,1766798396524,2598.64,0.00029999,120]
[399876840,1766798396781,2598.64,0.00029999,120]
[399876841,1766798397013,2598.64,0.00029999,120]
[399876842,1766798397340,2598.64,0.00029999,120]
[399876843,1766798397581,2598.64,0.00029999,120]
[399876844,1766798397853,2598.64,0.00029999,120]
[399876845,1766798398069,2598.64,0.00029999,120]
[399876846,1766798398311,2598.64,0.00029999,120]
[399876847,1766798398790,2598.64,0.00029999,120]
[399876848,1766798398881,2598.64,0.00029999,120]
[399876849,1766798399126,2598.64,0.00029999,120]
[399876850,1766798399373,2598.64,0.00029999,120]
[399876851,1766798399626,2598.64,0.00029999,120]
[399876852,1766798399936,2598.64,0.00029999,120]
[399876853,1766798400171,2598.64,0.00029999,120]
[399876854,1766798400410,2598.64,0.00029999,120]
[399876855,1766798400808,2598.64,0.00029999,120]
[399876856,1766798401105,2598.64,0.00029999,120]
[399876857,1766798401378,2598.79668596,0.00029999,120]
[399876858,1766798408297,227.87486084,0.00029999,120]
[399876859,1766798413054,196.44847674,0.00029999,120]
[399876860,1766798414031,259.33775446,0.00029999,120]
[399876861,1766798424675,244.4012493,0.00030027,120]
[399876862,1766798443494,3901.77,0.00030027,120]
[399876863,1766798443729,3901.77,0.00030027,120]
[399876864,1766798443988,3901.77,0.00030027,120]
[399876865,1766798444228,3901.77,0.00030027,120]
[399876866,1766798445600,3901.77,0.00030027,120]